[Event "Romanian Open 2019"]
[Site "Alba Iulia"]
[Date "2019.10.29"]
[Round "2.3"]
[White "Gheorghiu, Calin"]
[Black "Shishkin, Vadim"]
[Result "0-1"]
[ECO "B45"]
[WhiteElo "2315"]
[BlackElo "2428"]
[Annotator "NA"]
[PlyCount "84"]
[EventDate "2019.10.28"]
[EventType "swiss"]
[EventCountry "ROU"]
[SourceTitle "playchess.com"]
[Source "ChessBase"]
[SourceQuality "1"]
[TimeControl "5400+30"]

1. e4 {[%emt 0:00:15]} c5 {[%emt 0:00:00]} 2. Nf3 {[%emt 0:00:31]} Nc6 {[%emt 0:00:02]} 3. d4 {[%emt 0:00:23]} cxd4 {[%emt 0:00:05]} 4. Nxd4 {[%emt 0:00:05]} e6 {[%emt 0:03:09]} 5. Nc3 {[%emt 0:01:38]} d6 {[%emt 0:00:24]} 6. Be3 {[%emt 0:02:20]} Nf6 {[%emt 0:00:12]} 7. f3 {[%emt 0:01:43]} Be7 {[%emt 0:00:08]} 8. Qd2 {[%emt 0:00:20]} a6 {[%emt 0:00:36]} 9. O-O-O {[%emt 0:02:15]} O-O {[%emt 0:01:15]} 10. g4 {[%emt 0:02:28]} Nxd4 {[%emt 0:05:19]} 11. Qxd4 {[%emt 0:01:23]} Nd7 {[%emt 0:17:56]} 12. Kb1 {[%emt 0:02:09]} b5 {[%emt 0:01:11]} 13. h4 {[%emt 0:02:46]} Ne5 {[%emt 0:09:34]} 14. Be2 {[%emt 0:05:25]} Bb7 {[%emt 0:13:02]} 15. g5 {[%emt 0:06:20]} Rc8 {[%emt 0:05:17]} 16. h5 {[%emt 0:02:48]} Nc4 {[%emt 0:15:17]} 17. Bxc4 {[%emt 0:01:27]} Rxc4 {[%emt 0:00:53]} 18. Qd2 {[%emt 0:01:16]} Qc7 {[%emt 0:08:54]} 19. g6 {[%emt 0:10:03]} Bf6 {[%emt 0:01:15]} 20. Qxd6 {[%emt 0:08:01]} Qxd6 {[%emt 0:00:04]} 21. Rxd6 {[%emt 0:00:35]} Bxc3 {[%emt 0:00:51]} 22. bxc3 {[%emt 0:01:16]} Rxc3 {[%emt 0:00:10]} 23. Bd4 {[%emt 0:04:46]} Rxf3 {[%emt 0:02:53]} 24. h6 {[%emt 0:03:21]} fxg6 {[%emt 0:05:40]} 25. hxg7 {[%emt 0:05:08]} Re8 {[%emt 0:00:33]} 26. Be5 {[%emt 0:01:05]} Bxe4 {[%emt 0:01:44]} 27. Rd4 {[%emt 0:00:05]} Re3 {[%emt 0:02:31]} 28. Bf4 {[%emt 0:01:51]} Re2 {[%emt 0:01:55]} 29. Rh2 {[%emt 0:00:30]} Re1+ {[%emt 0:01:00]} 30. Bc1 {[%emt 0:01:12]} Bd5 {[%emt 0:01:55]} 31. Kb2 {[%emt 0:01:09]} Kxg7 {[%emt 0:00:33]} 32. Bh6+ {[%emt 0:00:16]} Kg8 {[%emt 0:00:04]} 33. a4 {[%emt 0:02:00]} Re4 {[%emt 0:01:06]} 34. c3 {[%emt 0:00:47]} bxa4 {[%emt 0:00:30]} 35. Rf2 {[%emt 0:01:56]} Rb8+ {[%emt 0:00:28]} 36. Ka3 {[%emt 0:00:14]} Re1 {[%emt 0:00:16]} 37. Rb4 {[%emt 0:00:21]} Ra1+ {[%emt 0:00:35]} 38. Kb2 {[%emt 0:00:05]} Rxb4+ {[%emt 0:00:18]} 39. Kxa1 {[%emt 0:00:14]} Rb8 {[%emt 0:00:04]} 40. Rf4 {[%emt 0:00:25]} a3 {[%emt 0:01:18]} 41. c4 {[%emt 0:00:06]} e5 {[%emt 0:00:26]} 42. Rh4 {[%emt 0:00:05]} Rb4 {[%emt 0:00:26]} 0-1

[Event "Romanian Open 2019"]
[Site "Alba Iulia"]
[Date "2019.10.29"]
[Round "2.4"]
[White "David, Alexandru-Vasile"]
[Black "Moksh Amit Doshi"]
[Result "0-1"]
[ECO "A48"]
[WhiteElo "2424"]
[BlackElo "2328"]
[Annotator "NA"]
[PlyCount "78"]
[EventDate "2019.10.28"]
[EventType "swiss"]
[EventCountry "ROU"]
[SourceTitle "playchess.com"]
[Source "ChessBase"]
[SourceQuality "1"]
[TimeControl "5400+30"]

1. d4 {[%emt 0:00:00]} Nf6 {[%emt 0:01:07]} 2. Nf3 {[%emt 0:00:38]} g6 {[%emt 0:00:06]} 3. Bg5 {[%emt 0:00:34]} Bg7 {[%emt 0:00:09]} 4. Nbd2 {[%emt 0:00:07]} O-O {[%emt 0:00:08]} 5. c3 {[%emt 0:00:20]} d6 {[%emt 0:00:20]} 6. e4 {[%emt 0:01:23]} c5 {[%emt 0:01:17]} 7. dxc5 {[%emt 0:01:01]} dxc5 {[%emt 0:00:08]} 8. Bc4 {[%emt 0:00:43]} Nc6 {[%emt 0:00:08]} 9. O-O {[%emt 0:00:08]} Qc7 {[%emt 0:00:04]} 10. Qe2 {[%emt 0:02:10]} Na5 {[%emt 0:00:15]} 11. Bd3 {[%emt 0:02:56]} h6 {[%emt 0:01:09]} 12. Bxf6 {[%emt 0:08:50]} exf6 {[%emt 0:02:05]} 13. Nc4 {[%emt 0:01:43]} Nxc4 {[%emt 0:02:35]} 14. Bxc4 {[%emt 0:00:06]} f5 {[%emt 0:00:43]} 15. exf5 {[%emt 0:05:13]} Bxf5 {[%emt 0:01:15]} 16. Rfe1 {[%emt 0:00:05]} Bf6 {[%emt 0:04:18]} 17. Bd3 {[%emt 0:03:49]} Bd7 {[%emt 0:03:17]} 18. Rad1 {[%emt 0:04:09]} Kg7 {[%emt 0:04:19]} 19. Nd2 {[%emt 0:04:18]} Rfe8 {[%emt 0:02:47]} 20. Qf3 {[%emt 0:00:11]} Be5 {[%emt 0:01:27]} 21. h3 {[%emt 0:02:04]} f5 {[%emt 0:02:25]} 22. Bc4 {[%emt 0:00:10]} Bc6 {[%emt 0:00:54]} 23. Bd5 {[%emt 0:04:21]} Bh2+ {[%emt 0:03:13]} 24. Kf1 {[%emt 0:16:15]} Rxe1+ {[%emt 0:00:31]} 25. Rxe1 {[%emt 0:00:03]} Bxd5 {[%emt 0:00:11]} 26. Qxd5 {[%emt 0:00:06]} Rd8 {[%emt 0:00:05]} 27. Qe6 {[%emt 0:00:06]} Rxd2 {[%emt 0:00:42]} 28. Qe7+ {[%emt 0:00:13]} Qxe7 {[%emt 0:00:05]} 29. Rxe7+ {[%emt 0:00:04]} Kf6 {[%emt 0:00:21]} 30. Rxb7 {[%emt 0:00:05]} Bd6 {[%emt 0:00:28]} 31. Ke1 {[%emt 0:01:21]} Rc2 {[%emt 0:00:42]} 32. a4 {[%emt 0:00:05]} c4 {[%emt 0:00:38]} 33. Rb5 {[%emt 0:00:43]} a6 {[%emt 0:00:29]} 34. Rb6 {[%emt 0:01:11]} Ke5 {[%emt 0:00:05]} 35. f4+ {[%emt 0:00:23]} Kd5 {[%emt 0:00:05]} 36. g3 {[%emt 0:00:03]} g5 {[%emt 0:00:32]} 37. Kd1 {[%emt 0:03:22]} Rh2 {[%emt 0:00:06]} 38. Rxa6 {[%emt 0:00:42]} gxf4 {[%emt 0:00:05]} 39. gxf4 {[%emt 0:00:04]} Bxf4 {[%emt 0:00:07]} 0-1

[Event "Romanian Open 2019"]
[Site "Alba Iulia"]
[Date "2019.10.29"]
[Round "2.5"]
[White "Talu, Mircea"]
[Black "Omelja, Artem"]
[Result "0-1"]
[ECO "A81"]
[WhiteElo "2288"]
[BlackElo "2424"]
[Annotator "NA RC"]
[PlyCount "84"]
[EventDate "2019.10.28"]
[EventType "swiss"]
[EventCountry "ROU"]
[SourceTitle "playchess.com"]
[Source "ChessBase"]
[SourceQuality "1"]
[TimeControl "5400+30"]

1. d4 {[%emt 0:00:00]} f5 {[%emt 0:03:19]} 2. g3 {[%emt 0:00:08]} Nf6 {[%emt 0:00:10]} 3. Bg2 {[%emt 0:00:11]} g6 {[%emt 0:00:09]} 4. b3 {[%emt 0:01:07]} Bg7 {[%emt 0:00:12]} 5. Bb2 {[%emt 0:00:05]} O-O {[%emt 0:00:33]} 6. Nf3 {[%emt 0:00:27]} d6 {[%emt 0:01:02]} 7. O-O {[%emt 0:00:50]} c6 {[%emt 0:00:32]} 8. Nbd2 {[%emt 0:00:47]} a5 {[%emt 0:00:29]} 9. c4 {[%emt 0:00:09]} Na6 {[%emt 0:00:24]} 10. Re1 {[%emt 0:08:37]} Nd7 {[%emt 0:02:11]} 11. e4 {[%emt 0:20:01]} f4 {[%emt 0:00:18]} 12. e5 {[%emt 0:00:09]} dxe5 {[%emt 0:00:17]} 13. d5 {[%emt 0:00:08]} cxd5 {[%emt 0:04:28]} 14. cxd5 {[%emt 0:09:12]} Nb6 {[%emt 0:08:10]} 15. Bxe5 {[%emt 0:05:50]} Nxd5 {[%emt 0:01:08]} 16. Nc4 {[%emt 0:05:46]} e6 {[%emt 0:01:48]} 17. Nd4 {[%emt 0:02:26]} Nac7 {[%emt 0:05:35]} 18. Bh3 {[%emt 0:10:01]} fxg3 {[%emt 0:01:27]} 19. fxg3 {[%emt 0:06:28]} Bxe5 {[%emt 0:04:53]} 20. Nxe5 {[%emt 0:00:42]} Ra6 {[%emt 0:01:02]} 21. Qg4 {[%emt 0:05:30]} Qf6 {[%emt 0:07:53]} 22. Rac1 {[%emt 0:00:28]} Rd6 {[%emt 0:02:06]} 23. Re2 {[%emt 0:01:36]} Qg7 {[%emt 0:09:16]} 24. Ndf3 {[%emt 0:03:16]} b6 {[%emt 0:04:30]} 25. Ng5 {[%emt 0:09:05]} Ba6 {[%emt 0:07:16]} 26. Ree1 {[%emt 0:00:09]} Nf6 {[%emt 0:23:16]} 27. Qh4 {[%emt 0:02:29]} h6 {[%emt 0:01:50]} 28. Rxc7 {[%emt 0:07:51]} Qxc7 {[%emt 0:00:08]} 29. Qxh6 {[%emt 0:00:07]} Qc5+ {[%emt 0:03:47]} 30. Kh1 {[%emt 0:00:14]} Bb7+ {[%emt 0:00:55]} 31. Bg2 {[%emt 0:00:21]} Bxg2+ {[%emt 0:01:56]} 32. Kxg2 {[%emt 0:00:07]} Qc2+ {[%emt 0:00:11]} 33. Kh1 {[%emt 0:00:46]} Rd1 {[%emt 0:00:51]} 34. Rxd1 {[%emt 0:01:25]} Qxd1+ {[%emt 0:00:10]} 35. Kg2 {[%emt 0:00:06]} Qc2+ {[%emt 0:01:03]} 36. Kh3 {[%emt 0:00:38]} Rc8 {[%emt 0:01:30]} 37. Ngf7 {[%emt 0:00:45]} Qf5+ {[%emt 0:00:46]} 38. g4 {[%emt 0:00:30]} Rc3+ {[%emt 0:00:32]} 39. Kh4 {[%emt 0:00:03]} Qf2+ {[%emt 0:00:27]} 40. Kg5 {[%emt 0:00:01]} Ne4+ {[%emt 0:00:22]} 41. Kxg6 {[%emt 0:00:24]} Qf6+ {[%emt 0:00:09]} 42. Kh5 {[%emt 0:00:11]} Rh3# {[%emt 0:00:08]} 0-1

[Event "Romanian Open 2019"]
[Site "Alba Iulia"]
[Date "2019.10.29"]
[Round "2.7"]
[White "Nastore, Pavel-Alexandru"]
[Black "Secheres, Adrian-Simion"]
[Result "0-1"]
[ECO "A57"]
[WhiteElo "2030"]
[BlackElo "2397"]
[Annotator "NA"]
[PlyCount "58"]
[EventDate "2019.10.28"]
[EventType "swiss"]
[EventCountry "ROU"]
[SourceTitle "playchess.com"]
[Source "ChessBase"]
[SourceQuality "1"]
[TimeControl "5400+30"]

1. d4 {[%emt 0:00:00]} Nf6 {[%emt 0:01:00]} 2. c4 {[%emt 0:00:17]} c5 {[%emt 0:01:27]} 3. d5 {[%emt 0:00:05]} b5 {[%emt 0:00:23]} 4. cxb5 {[%emt 0:04:42]} a6 {[%emt 0:00:28]} 5. b6 {[%emt 0:01:21]} d6 {[%emt 0:04:06]} 6. Nc3 {[%emt 0:04:14]} Nbd7 {[%emt 0:01:29]} 7. e4 {[%emt 0:03:29]} g6 {[%emt 0:02:48]} 8. Nf3 {[%emt 0:00:58]} Bg7 {[%emt 0:00:36]} 9. Be2 {[%emt 0:01:31]} O-O {[%emt 0:00:51]} 10. O-O {[%emt 0:00:15]} Rb8 {[%emt 0:04:20]} 11. a4 {[%emt 0:02:16]} Rxb6 {[%emt 0:02:40]} 12. Nd2 {[%emt 0:03:14]} Rb4 {[%emt 0:09:56]} 13. a5 {[%emt 0:01:54]} Ne8 {[%emt 0:03:18]} 14. Nc4 {[%emt 0:02:41]} Nc7 {[%emt 0:05:39]} 15. Na4 {[%emt 0:09:25]} Rb8 {[%emt 0:03:41]} 16. Nab6 {[%emt 0:08:58]} Nb5 {[%emt 0:00:34]} 17. Bg4 {[%emt 0:03:57]} Nxb6 {[%emt 0:11:47]} 18. axb6 {[%emt 0:00:30]} Bb7 {[%emt 0:01:54]} 19. Bh3 {[%emt 0:03:58]} Nd4 {[%emt 0:02:47]} 20. Bd2 {[%emt 0:05:00]} e6 {[%emt 0:02:41]} 21. Ne3 {[%emt 0:24:37]} exd5 {[%emt 0:05:15]} 22. exd5 {[%emt 0:00:11]} f5 {[%emt 0:03:20]} 23. Ba5 {[%emt 0:13:31]} Qh4 {[%emt 0:06:30]} 24. f4 {[%emt 0:02:49]} Rfe8 {[%emt 0:02:39]} 25. Ra3 {[%emt 0:01:01]} Re4 {[%emt 0:04:04]} 26. Be1 {[%emt 0:01:19]} Qe7 {[%emt 0:01:25]} 27. Bf2 {[%emt 0:00:04]} Nb5 {[%emt 0:03:04]} 28. Re1 {[%emt 0:01:10]} Nxa3 {[%emt 0:00:46]} 29. bxa3 {[%emt 0:00:05]} Bd4 {[%emt 0:00:19]} 0-1

[Event "Romanian Open 2019"]
[Site "Alba Iulia"]
[Date "2019.10.29"]
[Round "2.8"]
[White "Banzea, Alexandru-Bogdan"]
[Black "Dev, Shah"]
[Result "1-0"]
[ECO "C77"]
[WhiteElo "2389"]
[BlackElo "2025"]
[Annotator "NA"]
[PlyCount "85"]
[EventDate "2019.10.28"]
[EventType "swiss"]
[EventCountry "ROU"]
[SourceTitle "playchess.com"]
[Source "ChessBase"]
[SourceQuality "1"]
[TimeControl "5400+30"]

1. e4 {[%emt 0:00:00]} e5 {[%emt 0:01:28]} 2. Nf3 {[%emt 0:00:00]} Nc6 {[%emt 0:00:09]} 3. Bb5 {[%emt 0:00:06]} a6 {[%emt 0:00:06]} 4. Ba4 {[%emt 0:00:05]} Nf6 {[%emt 0:00:08]} 5. d3 {[%emt 0:00:07]} b5 {[%emt 0:00:09]} 6. Bb3 {[%emt 0:00:03]} Be7 7. a3 {[%emt 0:01:04]} d6 {[%emt 0:00:26]} 8. Bd2 {[%emt 0:00:22]} O-O {[%emt 0:00:44]} 9. O-O {[%emt 0:01:05]} Be6 {[%emt 0:22:39]} 10. Bxe6 {[%emt 0:00:23]} fxe6 {[%emt 0:00:06]} 11. b4 {[%emt 0:00:48]} d5 {[%emt 0:06:49]} 12. Re1 {[%emt 0:03:31]} Bd6 {[%emt 0:02:17]} 13. Bc3 {[%emt 0:02:44]} d4 {[%emt 0:02:17]} 14. Bb2 {[%emt 0:01:04]} a5 {[%emt 0:01:50]} 15. c3 {[%emt 0:01:42]} axb4 {[%emt 0:01:38]} 16. cxb4 {[%emt 0:01:27]} Nd7 {[%emt 0:12:12]} 17. Nbd2 {[%emt 0:00:49]} Nb6 {[%emt 0:01:28]} 18. Rc1 {[%emt 0:01:48]} Ne7 {[%emt 0:00:56]} 19. Ng5 {[%emt 0:05:00]} Rf6 {[%emt 0:08:47]} 20. Qg4 {[%emt 0:05:57]} Ng6 {[%emt 0:01:44]} 21. g3 {[%emt 0:00:52]} h6 {[%emt 0:04:32]} 22. Ngf3 {[%emt 0:01:01]} Na4 {[%emt 0:00:16]} 23. Bxd4 {[%emt 0:02:15]} exd4 {[%emt 0:06:04]} 24. e5 {[%emt 0:00:12]} Nxe5 {[%emt 0:02:36]} 25. Nxe5 {[%emt 0:00:12]} Bxe5 {[%emt 0:02:35]} 26. Rxe5 {[%emt 0:00:25]} Nb2 {[%emt 0:00:06]} 27. Qe4 {[%emt 0:24:34]} Rxa3 {[%emt 0:05:44]} 28. Rxe6 {[%emt 0:01:27]} Rxe6 {[%emt 0:03:41]} 29. Qxe6+ {[%emt 0:00:10]} Kh8 {[%emt 0:00:10]} 30. Qf7 {[%emt 0:02:32]} Qf6 {[%emt 0:05:56]} 31. Qe8+ {[%emt 0:02:19]} Kh7 {[%emt 0:00:22]} 32. Qe4+ {[%emt 0:00:48]} Qg6 {[%emt 0:00:42]} 33. Qxd4 {[%emt 0:00:26]} Nxd3 {[%emt 0:00:30]} 34. Rxc7 {[%emt 0:01:38]} Ne1 {[%emt 0:01:02]} 35. Qe5 {[%emt 0:05:52]} Nf3+ {[%emt 0:01:22]} 36. Nxf3 {[%emt 0:00:13]} Rxf3 {[%emt 0:00:12]} 37. Qxb5 {[%emt 0:06:07]} Rf6 {[%emt 0:05:23]} 38. Qc4 {[%emt 0:01:08]} Qb1+ {[%emt 0:00:59]} 39. Kg2 {[%emt 0:00:59]} Rb6 {[%emt 0:00:52]} 40. Qd4 {[%emt 0:00:48]} Rg6 {[%emt 0:00:12]} 41. h4 {[%emt 0:01:06]} h5 {[%emt 0:00:23]} 42. Rc5 {[%emt 0:00:55]} Rh6 {[%emt 0:00:14]} 43. Rg5 {[%emt 0:00:16]} 1-0

[Event "Romanian Open 2019"]
[Site "Alba Iulia"]
[Date "2019.10.29"]
[Round "2.9"]
[White "Bilych, Olexiy"]
[Black "Istratescu, Andrei"]
[Result "1/2-1/2"]
[ECO "B90"]
[WhiteElo "2281"]
[BlackElo "2564"]
[Annotator "ChessBase"]
[PlyCount "80"]
[EventDate "2019.10.28"]
[EventType "swiss"]
[EventCountry "ROU"]
[SourceTitle "playchess.com"]
[Source "ChessBase"]
[SourceQuality "1"]
[TimeControl "5400+30"]

1. e4 {[%emt 0:00:00]} c5 {[%emt 0:00:00]} 2. Nf3 {[%emt 0:00:00]} d6 {[%emt 0:00:36]} 3. d4 {[%emt 0:00:00]} cxd4 {[%emt 0:00:03]} 4. Nxd4 {[%emt 0:00:00]} Nf6 {[%emt 0:00:03]} 5. Nc3 {[%emt 0:00:00]} a6 {[%emt 0:00:03]} 6. h3 {[%emt 0:00:00]} e6 {[%emt 0:03:16]} 7. g4 {[%emt 0:00:03]} h6 {[%emt 0:00:33]} 8. Bg2 {[%emt 0:00:11]} Qc7 {[%emt 0:00:06]} 9. f4 {[%emt 0:07:52]} Nc6 {[%emt 0:12:11]} 10. Nb3 {[%emt 0:07:08]} Nd7 {[%emt 0:02:19]} 11. Be3 {[%emt 0:03:15]} Be7 {[%emt 0:01:21]} 12. O-O {[%emt 0:01:44]} b6 {[%emt 0:03:08]} 13. Qe1 {[%emt 0:11:14]} Bb7 {[%emt 0:00:45]} 14. Rd1 {[%emt 0:09:23]} Nc5 {[%emt 0:05:17]} 15. Qf2 {[%emt 0:10:45]} O-O-O {[%emt 0:04:20]} 16. Nxc5 {[%emt 0:04:40]} dxc5 {[%emt 0:01:11]} 17. e5 {[%emt 0:05:28]} Rxd1 {[%emt 0:05:12]} 18. Rxd1 {[%emt 0:00:13]} Rd8 {[%emt 0:00:04]} 19. Re1 {[%emt 0:02:55]} Nb4 {[%emt 0:07:31]} 20. Qe2 {[%emt 0:09:21]} Bxg2 {[%emt 0:03:24]} 21. Qxg2 {[%emt 0:00:53]} Qc6 {[%emt 0:01:36]} 22. Qxc6+ {[%emt 0:00:47]} Nxc6 {[%emt 0:00:03]} 23. Kg2 {[%emt 0:01:16]} h5 {[%emt 0:03:31]} 24. a3 {[%emt 0:04:53]} hxg4 {[%emt 0:11:41]} 25. hxg4 {[%emt 0:00:04]} Rh8 {[%emt 0:00:02]} 26. Ne4 {[%emt 0:08:11]} g6 {[%emt 0:02:37]} 27. g5 {[%emt 0:00:34]} Kc7 {[%emt 0:01:00]} 28. Rd1 {[%emt 0:01:16]} Nb8 {[%emt 0:03:20]} 29. c3 {[%emt 0:02:11]} c4 {[%emt 0:06:05]} 30. Rh1 {[%emt 0:02:00]} Rxh1 {[%emt 0:00:22]} 31. Kxh1 {[%emt 0:00:04]} Kc6 {[%emt 0:03:52]} 32. Kg2 {[%emt 0:02:52]} Nd7 {[%emt 0:02:06]} 33. Kf3 {[%emt 0:03:15]} b5 {[%emt 0:01:53]} 34. Bd4 {[%emt 0:01:36]} a5 {[%emt 0:02:13]} 35. Ke3 {[%emt 0:00:28]} Nb8 {[%emt 0:00:25]} 36. Nf2 {[%emt 0:00:51]} Na6 {[%emt 0:05:30]} 37. Ng4 {[%emt 0:00:47]} Kd7 {[%emt 0:00:04]} 38. Ke4 {[%emt 0:01:36]} a4 {[%emt 0:01:00]} 39. Nh6 {[%emt 0:00:14]} Ke8 {[%emt 0:00:01]} 40. Ng4 {[%emt 0:00:12]} Kd7 {[%emt 0:01:20]} 1/2-1/2

[Event "Romanian Open 2019"]
[Site "Alba Iulia"]
[Date "2019.10.29"]
[Round "2.10"]
[White "Filip, Andrei"]
[Black "Akash G"]
[Result "0-1"]
[ECO "E68"]
[WhiteElo "2047"]
[BlackElo "2449"]
[Annotator "NA"]
[PlyCount "54"]
[EventDate "2019.10.28"]
[EventType "swiss"]
[EventCountry "ROU"]
[SourceTitle "playchess.com"]
[Source "ChessBase"]
[SourceQuality "1"]
[TimeControl "5400+30"]

1. Nf3 {[%emt 0:00:00]} Nf6 {[%emt 0:05:44]} 2. c4 {[%emt 0:00:43]} g6 {[%emt 0:00:30]} 3. d4 {[%emt 0:00:53]} Bg7 {[%emt 0:00:09]} 4. g3 {[%emt 0:01:34]} O-O {[%emt 0:00:10]} 5. Bg2 {[%emt 0:00:07]} d6 {[%emt 0:00:08]} 6. O-O {[%emt 0:00:54]} Nbd7 {[%emt 0:00:07]} 7. Nc3 {[%emt 0:00:17]} e5 {[%emt 0:00:11]} 8. e4 {[%emt 0:00:33]} exd4 {[%emt 0:00:16]} 9. Nxd4 {[%emt 0:00:13]} Re8 {[%emt 0:00:08]} 10. h3 {[%emt 0:00:47]} Nc5 {[%emt 0:00:22]} 11. Re1 {[%emt 0:01:32]} Bd7 {[%emt 0:00:11]} 12. Bf4 {[%emt 0:09:24]} h6 {[%emt 0:02:56]} 13. Qc2 {[%emt 0:08:19]} Nfxe4 {[%emt 0:05:22]} 14. Nxe4 {[%emt 0:03:15]} Bxd4 {[%emt 0:00:55]} 15. Qd2 {[%emt 0:08:38]} Rxe4 {[%emt 0:06:58]} 16. Bxe4 {[%emt 0:09:16]} Qf6 {[%emt 0:00:56]} 17. Rab1 {[%emt 0:25:37]} Bxh3 {[%emt 0:10:41]} 18. Bd5 {[%emt 0:17:17]} Bf5 {[%emt 0:03:01]} 19. Bxh6 {[%emt 0:05:12]} Bxb1 {[%emt 0:02:42]} 20. Rxb1 {[%emt 0:00:10]} Re8 {[%emt 0:03:10]} 21. Bg5 {[%emt 0:03:45]} Qf5 {[%emt 0:01:49]} 22. Rd1 {[%emt 0:00:56]} Bxb2 {[%emt 0:05:58]} 23. Qxb2 {[%emt 0:00:53]} Qxg5 {[%emt 0:00:11]} 24. Kg2 {[%emt 0:00:57]} Qe5 {[%emt 0:01:44]} 25. Qc1 {[%emt 0:00:38]} c6 {[%emt 0:01:04]} 26. Bf3 {[%emt 0:00:26]} Re6 {[%emt 0:00:14]} 27. Qh6 {[%emt 0:00:40]} Rf6 {[%emt 0:02:58]} 0-1

[Event "Romanian Open 2019"]
[Site "Alba Iulia"]
[Date "2019.10.29"]
[Round "2.11"]
[White "Andreev, Eduard"]
[Black "Advait, Bagri"]
[Result "1/2-1/2"]
[ECO "C55"]
[WhiteElo "2435"]
[BlackElo "2231"]
[Annotator "NA"]
[PlyCount "95"]
[EventDate "2019.10.28"]
[EventType "swiss"]
[EventCountry "ROU"]
[SourceTitle "playchess.com"]
[Source "ChessBase"]
[SourceQuality "1"]
[TimeControl "5400+30"]

1. e4 {[%emt 0:00:00]} e5 {[%emt 0:00:00]} 2. Nf3 {[%emt 0:00:00]} Nc6 {[%emt 0:00:10]} 3. Bc4 {[%emt 0:00:00]} Nf6 {[%emt 0:00:31]} 4. d3 {[%emt 0:00:11]} Be7 {[%emt 0:00:10]} 5. O-O {[%emt 0:00:38]} O-O {[%emt 0:00:16]} 6. Re1 {[%emt 0:00:24]} d6 {[%emt 0:00:15]} 7. a4 {[%emt 0:00:30]} Na5 {[%emt 0:00:11]} 8. Ba2 {[%emt 0:00:09]} c5 {[%emt 0:00:08]} 9. c3 {[%emt 0:00:28]} Nc6 {[%emt 0:00:12]} 10. Na3 {[%emt 0:00:45]} h6 {[%emt 0:01:16]} 11. Bd2 {[%emt 0:01:24]} a6 {[%emt 0:05:28]} 12. h3 {[%emt 0:02:19]} Re8 {[%emt 0:13:13]} 13. Qb1 {[%emt 0:15:38]} Bf8 {[%emt 0:08:16]} 14. Nc4 {[%emt 0:03:17]} b5 {[%emt 0:11:15]} 15. axb5 {[%emt 0:00:40]} axb5 {[%emt 0:00:09]} 16. Ne3 {[%emt 0:00:35]} Be6 {[%emt 0:02:46]} 17. Bxe6 {[%emt 0:04:23]} fxe6 {[%emt 0:02:58]} 18. Qc2 {[%emt 0:09:28]} Qd7 {[%emt 0:05:13]} 19. Ng4 {[%emt 0:04:23]} Nxg4 {[%emt 0:02:32]} 20. hxg4 {[%emt 0:00:06]} g5 {[%emt 0:07:01]} 21. b4 {[%emt 0:10:03]} cxb4 {[%emt 0:06:10]} 22. cxb4 {[%emt 0:03:20]} d5 {[%emt 0:09:08]} 23. Rxa8 {[%emt 0:21:41]} Rxa8 {[%emt 0:00:09]} 24. exd5 {[%emt 0:00:47]} exd5 {[%emt 0:10:26]} 25. Nxe5 {[%emt 0:01:59]} Nxe5 {[%emt 0:00:09]} 26. Rxe5 {[%emt 0:00:05]} Ra1+ {[%emt 0:01:56]} 27. Re1 {[%emt 0:02:20]} Rxe1+ {[%emt 0:00:14]} 28. Bxe1 {[%emt 0:00:05]} Qxg4 {[%emt 0:00:31]} 29. Qc6 {[%emt 0:00:50]} Bxb4 {[%emt 0:04:41]} 30. Qxd5+ {[%emt 0:00:52]} Kh7 {[%emt 0:01:43]} 31. f3 {[%emt 0:05:10]} Qf4 {[%emt 0:01:01]} 32. g3 {[%emt 0:00:54]} Qe3+ {[%emt 0:01:53]} 33. Bf2 {[%emt 0:00:15]} Qe8 {[%emt 0:01:38]} 34. Kg2 {[%emt 0:07:47]} Bf8 {[%emt 0:01:12]} 35. Qb7+ {[%emt 0:01:32]} Kg8 {[%emt 0:00:37]} 36. d4 {[%emt 0:00:27]} b4 {[%emt 0:00:31]} 37. d5 {[%emt 0:00:19]} Qe7 {[%emt 0:00:50]} 38. Qb5 {[%emt 0:01:05]} Qc7 {[%emt 0:00:29]} 39. Qd3 {[%emt 0:01:02]} Qc3 {[%emt 0:00:44]} 40. Qg6+ {[%emt 0:00:19]} Qg7 {[%emt 0:00:06]} 41. Qb6 {[%emt 0:00:43]} Qd7 {[%emt 0:00:26]} 42. Bd4 {[%emt 0:01:04]} Bg7 {[%emt 0:01:08]} 43. Qb8+ {[%emt 0:02:07]} Kh7 {[%emt 0:00:15]} 44. Bxg7 {[%emt 0:01:11]} Kxg7 {[%emt 0:00:17]} 45. d6 {[%emt 0:00:26]} b3 {[%emt 0:00:24]} 46. Qb4 {[%emt 0:00:28]} Kg6 {[%emt 0:00:35]} 47. Qxb3 {[%emt 0:00:43]} Qxd6 {[%emt 0:00:19]} 48. Qg8+ {[%emt 0:00:06]} 1/2-1/2